[Event "Titled Tuesday Blitz August 09 Early 2022"]
[White "Bosnjak, Petar"]
[Black "Maksimenko, Viktor"]
[WhiteFideId "14532581"]
[BlackFideId "13710478"]
[WhiteElo "2135"]
[BlackElo "2269"]
[Result "1-0"]
[Round "08"]
[TimeControl "180+1"]
[Date "2022.08.09"]
[WhiteClock "0:00:10"]
[BlackClock "0:00:02"]

1. d4 {[%clk 0:03:00]}  Nf6 {[%clk 0:02:59]} 2. c4 {[%clk 0:02:59]}  e6 {[%clk 0:02:59]} 3. Nf3 {[%clk 0:02:58]}  b6 {[%clk 0:02:59]} 4. Nc3 {[%clk 0:02:58]}  Bb4 {[%clk 0:02:57]} 5. Bd2 {[%clk 0:02:58]}  Bb7 {[%clk 0:02:57]} 6. e3 {[%clk 0:02:57]}  O-O {[%clk 0:02:57]} 7. Be2 {[%clk 0:02:57]}  Bxc3 {[%clk 0:02:56]} 8. Bxc3 {[%clk 0:02:57]}  Ne4 {[%clk 0:02:57]} 9. Qc2 {[%clk 0:02:58]}  f5 {[%clk 0:02:56]} 10. O-O {[%clk 0:02:57]}  d6 {[%clk 0:02:53]} 11. Nd2 {[%clk 0:02:56]}  Nd7 {[%clk 0:02:51]} 12. Nxe4 {[%clk 0:02:55]}  Bxe4 {[%clk 0:02:52]} 13. Qd1 {[%clk 0:02:55]}  Nf6 {[%clk 0:02:48]} 14. b4 {[%clk 0:02:46]}  Qe8 {[%clk 0:02:43]} 15. a4 {[%clk 0:02:44]}  a6 {[%clk 0:02:35]} 16. a5 {[%clk 0:02:42]}  b5 {[%clk 0:02:34]} 17. cxb5 {[%clk 0:02:40]}  axb5 {[%clk 0:02:35]} 18. Rc1 {[%clk 0:02:30]}  Bd5 {[%clk 0:02:29]} 19. Qd3 {[%clk 0:02:22]}  Bc4 {[%clk 0:02:22]} 20. Qc2 {[%clk 0:02:21]}  d5 {[%clk 0:02:21]} 21. Rfd1 {[%clk 0:02:10]}  Ne4 {[%clk 0:02:16]} 22. f3 {[%clk 0:02:02]}  Nd6 {[%clk 0:02:15]} 23. Re1 {[%clk 0:02:00]}  Ra6 {[%clk 0:02:11]} 24. Bxc4 {[%clk 0:01:59]}  bxc4 {[%clk 0:02:02]} 25. Ra1 {[%clk 0:01:58]}  c6 {[%clk 0:01:44]} 26. Re2 {[%clk 0:01:30]}  Ra7 {[%clk 0:01:41]} 27. Be1 {[%clk 0:01:28]}  g5 {[%clk 0:01:21]} 28. Qd2 {[%clk 0:01:23]}  Nb5 {[%clk 0:00:55]} 29. Bg3 {[%clk 0:01:20]}  Qe7 {[%clk 0:00:53]} 30. Be5 {[%clk 0:01:16]}  c3 {[%clk 0:00:50]} 31. Qe1 {[%clk 0:01:16]}  Qxb4 {[%clk 0:00:48]} 32. Qg3 {[%clk 0:01:16]}  h6 {[%clk 0:00:41]} 33. h4 {[%clk 0:01:14]}  Qe7 {[%clk 0:00:41]} 34. a6 {[%clk 0:01:06]}  Rfa8 {[%clk 0:00:39]} 35. Rea2 {[%clk 0:01:04]}  Kh7 {[%clk 0:00:32]} 36. hxg5 {[%clk 0:01:00]}  Qxg5 {[%clk 0:00:33]} 37. Kf2 {[%clk 0:00:55]}  Qxg3+ {[%clk 0:00:32]} 38. Bxg3 {[%clk 0:00:54]}  Kg6 {[%clk 0:00:26]} 39. Bf4 {[%clk 0:00:52]}  h5 {[%clk 0:00:24]} 40. Ke2 {[%clk 0:00:52]}  Kf6 {[%clk 0:00:22]} 41. Kd3 {[%clk 0:00:49]}  Ke7 {[%clk 0:00:22]} 42. g3 {[%clk 0:00:44]}  Kd7 {[%clk 0:00:22]} 43. Be5 {[%clk 0:00:42]}  c5 {[%clk 0:00:22]} 44. dxc5 {[%clk 0:00:41]}  Kc6 {[%clk 0:00:20]} 45. Ra5 {[%clk 0:00:40]}  Kxc5 {[%clk 0:00:18]} 46. Rb1 {[%clk 0:00:36]}  Rxa6 {[%clk 0:00:18]} 47. Rbxb5+ {[%clk 0:00:34]}  Kc6 {[%clk 0:00:18]} 48. Rc5+ {[%clk 0:00:32]}  Kd7 {[%clk 0:00:15]} 49. Rc7+ {[%clk 0:00:32]}  Kd8 {[%clk 0:00:14]} 50. Rxa6 {[%clk 0:00:32]}  Rxa6 {[%clk 0:00:15]} 51. Rxc3 {[%clk 0:00:31]}  Ra4 {[%clk 0:00:15]} 52. f4 {[%clk 0:00:25]}  Ke8 {[%clk 0:00:14]} 53. Rc7 {[%clk 0:00:22]}  Ra2 {[%clk 0:00:13]} 54. Rh7 {[%clk 0:00:21]}  Rg2 {[%clk 0:00:13]} 55. Rxh5 {[%clk 0:00:19]}  Rxg3 {[%clk 0:00:14]} 56. Rh7 {[%clk 0:00:19]}  Rg1 {[%clk 0:00:12]} 57. Kd4 {[%clk 0:00:19]}  Re1 {[%clk 0:00:12]} 58. Bf6 {[%clk 0:00:19]}  Kf8 {[%clk 0:00:10]} 59. Re7 {[%clk 0:00:19]}  Rd1+ {[%clk 0:00:10]} 60. Ke5 {[%clk 0:00:18]}  Re1 {[%clk 0:00:10]} 61. Kxe6 {[%clk 0:00:17]}  Rxe3+ {[%clk 0:00:10]} 62. Kd6 {[%clk 0:00:16]}  Re4 {[%clk 0:00:07]} 63. Be5 {[%clk 0:00:13]}  d4 {[%clk 0:00:05]} 64. Ke6 {[%clk 0:00:11]}  d3 {[%clk 0:00:05]} 65. Kf6 {[%clk 0:00:12]}  d2 {[%clk 0:00:04]} 66. Rd7 {[%clk 0:00:12]}  Rxe5 {[%clk 0:00:02]} 67. fxe5 {[%clk 0:00:10]} 1-0


[Site "https://www.chess.com"]

[Event "Titled Tuesday Blitz August 09 Early 2022"]
[White "Chyzy, Jakub"]
[Black "Fiorito, Joaquin"]
[WhiteFideId "21806209"]
[BlackFideId "180173"]
[WhiteElo "2023"]
[BlackElo "1758"]
[Result "1-0"]
[Round "08"]
[TimeControl "180+1"]
[Date "2022.08.09"]
[WhiteClock "0:01:05"]
[BlackClock "0:00:32"]

1. b3 {[%clk 0:03:00]}  d5 {[%clk 0:02:58]} 2. Bb2 {[%clk 0:03:01]}  c5 {[%clk 0:02:57]} 3. e3 {[%clk 0:03:01]}  Nc6 {[%clk 0:02:58]} 4. f4 {[%clk 0:03:02]}  Nf6 {[%clk 0:02:54]} 5. Bb5 {[%clk 0:03:01]}  Bd7 {[%clk 0:02:53]} 6. Nf3 {[%clk 0:03:00]}  g6 {[%clk 0:02:53]} 7. O-O {[%clk 0:02:57]}  Bg7 {[%clk 0:02:54]} 8. Bxc6 {[%clk 0:02:57]}  Bxc6 {[%clk 0:02:54]} 9. Ne5 {[%clk 0:02:56]}  Rc8 {[%clk 0:02:54]} 10. d3 {[%clk 0:02:56]}  O-O {[%clk 0:02:54]} 11. Nd2 {[%clk 0:02:55]}  b5 {[%clk 0:02:54]} 12. Ndf3 {[%clk 0:02:49]}  Bb7 {[%clk 0:02:54]} 13. a4 {[%clk 0:02:48]}  a6 {[%clk 0:02:51]} 14. axb5 {[%clk 0:02:47]}  axb5 {[%clk 0:02:52]} 15. Qd2 {[%clk 0:02:43]}  c4 {[%clk 0:02:39]} 16. Bd4 {[%clk 0:02:36]}  Ra8 {[%clk 0:02:07]} 17. Rxa8 {[%clk 0:02:34]}  Bxa8 {[%clk 0:02:08]} 18. Ra1 {[%clk 0:02:33]}  e6 {[%clk 0:02:07]} 19. Ra7 {[%clk 0:02:24]}  Qb8 {[%clk 0:02:01]} 20. Qa5 {[%clk 0:02:13]}  cxd3 {[%clk 0:01:59]} 21. cxd3 {[%clk 0:02:11]}  Qc8 {[%clk 0:01:54]} 22. Rc7 {[%clk 0:02:04]}  Qd8 {[%clk 0:01:48]} 23. Qa7 {[%clk 0:01:54]}  Qe8 {[%clk 0:00:48]} 24. Ng5 {[%clk 0:01:42]}  Qb8 {[%clk 0:00:42]} 25. Nexf7 {[%clk 0:01:29]}  Qxa7 {[%clk 0:00:40]} 26. Rxa7 {[%clk 0:01:28]}  h6 {[%clk 0:00:37]} 27. Nxe6 {[%clk 0:01:08]}  Rxf7 {[%clk 0:00:32]} 28. Rxa8+ {[%clk 0:01:07]}  Kh7 {[%clk 0:00:32]} 29. Nxg7 {[%clk 0:01:06]}  Kxg7 {[%clk 0:00:32]} 30. Ra6 {[%clk 0:01:05]} 1-0


[Site "https://www.chess.com"]

[Event "Titled Tuesday Blitz August 09 Early 2022"]
[White "De Souza, Cristiano Gomes"]
[Black "Vazquez Espino, Uriel"]
[WhiteFideId "2151758"]
[BlackFideId "5119138"]
[WhiteElo "2068"]
[BlackElo "2379"]
[Result "0-1"]
[Round "08"]
[TimeControl "180+1"]
[Date "2022.08.09"]
[WhiteClock "0:00:14"]
[BlackClock "0:00:20"]

1. d4 {[%clk 0:03:00]}  Nf6 {[%clk 0:02:59]} 2. c4 {[%clk 0:03:00]}  e6 {[%clk 0:03:00]} 3. Nf3 {[%clk 0:02:59]}  Bb4+ {[%clk 0:03:00]} 4. Bd2 {[%clk 0:02:58]}  Qe7 {[%clk 0:03:00]} 5. Nc3 {[%clk 0:02:57]}  Bxc3 {[%clk 0:02:45]} 6. Bxc3 {[%clk 0:02:56]}  Ne4 {[%clk 0:02:45]} 7. Rc1 {[%clk 0:02:55]}  b6 {[%clk 0:02:44]} 8. e3 {[%clk 0:02:55]}  Bb7 {[%clk 0:02:44]} 9. Be2 {[%clk 0:02:54]}  d6 {[%clk 0:02:43]} 10. O-O {[%clk 0:02:54]}  Nxc3 {[%clk 0:02:41]} 11. Rxc3 {[%clk 0:02:53]}  c5 {[%clk 0:02:39]} 12. Qd2 {[%clk 0:02:48]}  O-O {[%clk 0:02:38]} 13. a3 {[%clk 0:02:47]}  Nd7 {[%clk 0:02:38]} 14. b4 {[%clk 0:02:43]}  Nf6 {[%clk 0:02:36]} 15. Rcc1 {[%clk 0:02:37]}  Ne4 {[%clk 0:02:29]} 16. Qb2 {[%clk 0:02:37]}  f5 {[%clk 0:02:27]} 17. Nd2 {[%clk 0:02:35]}  Rf6 {[%clk 0:01:59]} 18. f3 {[%clk 0:02:34]}  Ng5 {[%clk 0:01:53]} 19. Rfd1 {[%clk 0:02:22]}  Rg6 {[%clk 0:01:45]} 20. Kh1 {[%clk 0:02:21]}  Rf8 {[%clk 0:01:33]} 21. Nf1 {[%clk 0:02:13]}  f4 {[%clk 0:01:26]} 22. e4 {[%clk 0:02:08]}  Nh3 {[%clk 0:01:17]} 23. Rd2 {[%clk 0:01:33]}  Qg5 {[%clk 0:01:14]} 24. g3 {[%clk 0:01:31]}  fxg3 {[%clk 0:01:10]} 25. Nxg3 {[%clk 0:01:30]}  Qe3 {[%clk 0:01:00]} 26. Qc3 {[%clk 0:01:01]}  Qh6 {[%clk 0:00:44]} 27. dxc5 {[%clk 0:00:59]}  Rxg3 {[%clk 0:00:23]} 28. hxg3 {[%clk 0:00:41]}  Nf2+ {[%clk 0:00:19]} 29. Kg2 {[%clk 0:00:42]}  Nxe4 {[%clk 0:00:18]} 30. Qd3 {[%clk 0:00:26]}  Qxd2 {[%clk 0:00:17]} 31. Qxd2 {[%clk 0:00:25]}  Nxd2 {[%clk 0:00:18]} 32. cxd6 {[%clk 0:00:23]}  Nxf3 {[%clk 0:00:18]} 33. Bxf3 {[%clk 0:00:22]}  Bxf3+ {[%clk 0:00:17]} 34. Kg1 {[%clk 0:00:22]}  Rd8 {[%clk 0:00:17]} 35. c5 {[%clk 0:00:22]}  bxc5 {[%clk 0:00:17]} 36. bxc5 {[%clk 0:00:23]}  Bc6 {[%clk 0:00:18]} 37. Kf2 {[%clk 0:00:23]}  Kf7 {[%clk 0:00:18]} 38. Ke3 {[%clk 0:00:23]}  e5 {[%clk 0:00:18]} 39. Rf1+ {[%clk 0:00:19]}  Ke6 {[%clk 0:00:18]} 40. a4 {[%clk 0:00:19]}  Kd5 {[%clk 0:00:18]} 41. Rc1 {[%clk 0:00:17]}  Rb8 {[%clk 0:00:18]} 42. Rc3 {[%clk 0:00:16]}  Rb2 {[%clk 0:00:17]} 43. a5 {[%clk 0:00:14]}  Ra2 {[%clk 0:00:18]} 44. d7 {[%clk 0:00:15]}  Bxd7 {[%clk 0:00:18]} 45. Rd3+ {[%clk 0:00:14]}  Kc6 {[%clk 0:00:18]} 46. Rd6+ {[%clk 0:00:13]}  Kc7 {[%clk 0:00:19]} 47. Ke4 {[%clk 0:00:13]}  Rxa5 {[%clk 0:00:19]} 48. Kxe5 {[%clk 0:00:14]}  Rxc5+ {[%clk 0:00:19]} 49. Rd5 {[%clk 0:00:14]}  Rxd5+ {[%clk 0:00:20]} 50. Kxd5 {[%clk 0:00:14]}  a5 {[%clk 0:00:20]} 0-1


[Site "https://www.chess.com"]

[Event "Titled Tuesday Blitz August 09 Early 2022"]
[White "Degardin, Sylvain"]
[Black "Large, Peter G"]
[WhiteFideId "20623070"]
[BlackFideId "400866"]
[WhiteElo "2146"]
[BlackElo "2064"]
[Result "0-1"]
[Round "08"]
[TimeControl "180+1"]
[Date "2022.08.09"]
[WhiteClock "0:00:07"]
[BlackClock "0:00:07"]

1. d4 {[%clk 0:03:00]}  e6 {[%clk 0:02:59]} 2. Bf4 {[%clk 0:03:00]}  Nf6 {[%clk 0:02:59]} 3. e3 {[%clk 0:02:59]}  Be7 {[%clk 0:02:59]} 4. Bd3 {[%clk 0:02:58]}  b6 {[%clk 0:02:59]} 5. Qf3 {[%clk 0:02:56]}  c6 {[%clk 0:02:50]} 6. g4 {[%clk 0:02:56]}  Ba6 {[%clk 0:02:42]} 7. g5 {[%clk 0:02:53]}  Nd5 {[%clk 0:02:41]} 8. Be5 {[%clk 0:02:44]}  Bxd3 {[%clk 0:02:39]} 9. cxd3 {[%clk 0:02:42]}  f6 {[%clk 0:02:35]} 10. gxf6 {[%clk 0:02:40]}  Bxf6 {[%clk 0:02:33]} 11. Nc3 {[%clk 0:02:30]}  O-O {[%clk 0:02:29]} 12. Qg3 {[%clk 0:02:25]}  Na6 {[%clk 0:02:24]} 13. a3 {[%clk 0:02:20]}  Nxc3 {[%clk 0:02:15]} 14. bxc3 {[%clk 0:02:21]}  c5 {[%clk 0:02:15]} 15. Ne2 {[%clk 0:02:17]}  cxd4 {[%clk 0:02:15]} 16. cxd4 {[%clk 0:02:13]}  Rc8 {[%clk 0:02:07]} 17. O-O {[%clk 0:02:11]}  Nc7 {[%clk 0:02:00]} 18. Nf4 {[%clk 0:02:08]}  d6 {[%clk 0:01:46]} 19. Bxf6 {[%clk 0:02:01]}  Rxf6 {[%clk 0:01:40]} 20. Kh1 {[%clk 0:02:01]}  e5 {[%clk 0:01:37]} 21. Rg1 {[%clk 0:01:52]}  Qf8 {[%clk 0:01:34]} 22. dxe5 {[%clk 0:01:44]}  dxe5 {[%clk 0:01:34]} 23. Nh3 {[%clk 0:01:30]}  Rg6 {[%clk 0:01:20]} 24. Ng5 {[%clk 0:01:14]}  h6 {[%clk 0:01:12]} 25. Qxe5 {[%clk 0:01:06]}  Rxg5 {[%clk 0:01:12]} 26. Rxg5 {[%clk 0:01:05]}  hxg5 {[%clk 0:01:12]} 27. Rc1 {[%clk 0:01:00]}  Qf6 {[%clk 0:00:49]} 28. Qg3 {[%clk 0:00:48]}  Qe7 {[%clk 0:00:48]} 29. Qg4 {[%clk 0:00:43]}  Rf8 {[%clk 0:00:35]} 30. Rc6 {[%clk 0:00:33]}  Ne8 {[%clk 0:00:31]} 31. Re6 {[%clk 0:00:19]}  Qxa3 {[%clk 0:00:24]} 32. Qc4 {[%clk 0:00:16]}  Kh8 {[%clk 0:00:17]} 33. Kg2 {[%clk 0:00:15]}  Qb2 {[%clk 0:00:15]} 34. Qe4 {[%clk 0:00:06]}  Qxf2+ {[%clk 0:00:15]} 35. Kh3 {[%clk 0:00:06]}  Qf3+ {[%clk 0:00:13]} 36. Qxf3 {[%clk 0:00:05]}  Rxf3+ {[%clk 0:00:12]} 37. Kg4 {[%clk 0:00:05]}  Rf8 {[%clk 0:00:12]} 38. Kxg5 {[%clk 0:00:04]}  Kh7 {[%clk 0:00:10]} 39. Re7 {[%clk 0:00:04]}  a5 {[%clk 0:00:09]} 40. Rb7 {[%clk 0:00:04]}  Rf6 {[%clk 0:00:07]} 41. e4 {[%clk 0:00:04]}  Rd6 {[%clk 0:00:06]} 42. e5 {[%clk 0:00:03]}  Rxd3 {[%clk 0:00:05]} 43. Rxb6 {[%clk 0:00:03]}  Rd5 {[%clk 0:00:04]} 44. Kf5 {[%clk 0:00:01]}  Nc7 {[%clk 0:00:03]} 45. Ke4 {[%clk 0:00:01]}  Rd2 {[%clk 0:00:03]} 46. Rb7 {[%clk 0:00:02]}  Na6 {[%clk 0:00:02]} 47. e6 {[%clk 0:00:01]}  Nc5+ {[%clk 0:00:02]} 48. Ke3 {[%clk 0:00:01]}  Nxb7 {[%clk 0:00:03]} 49. Kxd2 {[%clk 0:00:01]}  Kg6 {[%clk 0:00:03]} 50. Kc3 {[%clk 0:00:01]}  Kf6 {[%clk 0:00:04]} 51. Kc4 {[%clk 0:00:02]}  Kxe6 {[%clk 0:00:04]} 52. Kb5 {[%clk 0:00:02]}  Kd5 {[%clk 0:00:04]} 53. h3 {[%clk 0:00:03]}  g5 {[%clk 0:00:04]} 54. Ka4 {[%clk 0:00:02]}  Kc4 {[%clk 0:00:04]} 55. Ka3 {[%clk 0:00:03]}  Nc5 {[%clk 0:00:05]} 56. Kb2 {[%clk 0:00:03]}  Kb4 {[%clk 0:00:05]} 57. Ka2 {[%clk 0:00:03]}  a4 {[%clk 0:00:05]} 58. Kb2 {[%clk 0:00:04]}  a3+ {[%clk 0:00:06]} 59. Ka2 {[%clk 0:00:05]}  Ka4 {[%clk 0:00:06]} 60. Kb1 {[%clk 0:00:05]}  Ne4 {[%clk 0:00:07]} 61. Ka1 {[%clk 0:00:06]}  Nf2 {[%clk 0:00:07]} 62. Ka2 {[%clk 0:00:07]}  Nxh3 {[%clk 0:00:07]} 0-1


[Site "https://www.chess.com"]

[Event "Titled Tuesday Blitz August 09 Early 2022"]
[White "Drygalov, Sergey"]
[Black "Livaic, Leon"]
[WhiteFideId "24171743"]
[BlackFideId "14531534"]
[WhiteElo "2840"]
[BlackElo "2881"]
[Result "1-0"]
[Round "08"]
[TimeControl "180+1"]
[Date "2022.08.09"]
[WhiteClock "0:00:08"]
[BlackClock "0:00:02"]

1. d4 {[%clk 0:03:00]}  Nf6 {[%clk 0:03:00]} 2. c4 {[%clk 0:03:01]}  e6 {[%clk 0:03:00]} 3. Nc3 {[%clk 0:03:01]}  d5 {[%clk 0:03:00]} 4. Nf3 {[%clk 0:03:00]}  a6 {[%clk 0:02:59]} 5. cxd5 {[%clk 0:02:57]}  exd5 {[%clk 0:02:59]} 6. Bg5 {[%clk 0:02:57]}  Be6 {[%clk 0:03:00]} 7. e3 {[%clk 0:02:53]}  Nbd7 {[%clk 0:02:58]} 8. Bd3 {[%clk 0:02:54]}  Bd6 {[%clk 0:02:58]} 9. O-O {[%clk 0:02:54]}  c6 {[%clk 0:02:58]} 10. Nd2 {[%clk 0:02:54]}  Qc7 {[%clk 0:02:41]} 11. f4 {[%clk 0:02:52]}  h6 {[%clk 0:02:39]} 12. Bh4 {[%clk 0:02:52]}  g5 {[%clk 0:02:39]} 13. Bg3 {[%clk 0:02:49]}  Bg4 {[%clk 0:02:21]} 14. Qc2 {[%clk 0:02:24]}  Rg8 {[%clk 0:02:10]} 15. Rac1 {[%clk 0:02:21]}  gxf4 {[%clk 0:02:05]} 16. Bxf4 {[%clk 0:02:10]}  Bh3 {[%clk 0:01:56]} 17. Rf2 {[%clk 0:02:08]}  Bxf4 {[%clk 0:01:56]} 18. exf4 {[%clk 0:02:08]}  O-O-O {[%clk 0:01:57]} 19. Bf1 {[%clk 0:01:59]}  Rg7 {[%clk 0:01:44]} 20. Nf3 {[%clk 0:01:55]}  Ng4 {[%clk 0:01:29]} 21. Re2 {[%clk 0:01:37]}  Nb6 {[%clk 0:00:58]} 22. Qf5+ {[%clk 0:00:56]}  Kb8 {[%clk 0:00:58]} 23. Rce1 {[%clk 0:00:51]}  Nc4 {[%clk 0:00:24]} 24. Qh5 {[%clk 0:00:51]}  Bxg2 {[%clk 0:00:18]} 25. Rxg2 {[%clk 0:00:23]}  Qxf4 {[%clk 0:00:18]} 26. Bxc4 {[%clk 0:00:22]}  Qxf3 {[%clk 0:00:15]} 27. Bf1 {[%clk 0:00:18]}  Rdg8 {[%clk 0:00:10]} 28. h3 {[%clk 0:00:14]}  Nh2 {[%clk 0:00:03]} 29. Qe5+ {[%clk 0:00:09]}  Ka7 {[%clk 0:00:03]} 30. Qxh2 {[%clk 0:00:10]}  Rxg2+ {[%clk 0:00:01]} 31. Bxg2 {[%clk 0:00:11]}  Qd3 {[%clk 0:00:01]} 32. Kh1 {[%clk 0:00:10]}  Qxd4 {[%clk 0:00:02]} 33. Qg1 {[%clk 0:00:10]}  Qb6 {[%clk 0:00:02]} 34. Rf1 {[%clk 0:00:08]}  d4 {[%clk 0:00:02]} 35. Ne4 {[%clk 0:00:09]}  c5 {[%clk 0:00:02]} 36. Nd2 {[%clk 0:00:08]}  Qb5 {[%clk 0:00:02]} 37. Rxf7 {[%clk 0:00:08]}  Qd3 {[%clk 0:00:02]} 38. Rxb7+ {[%clk 0:00:08]}  Ka8 {[%clk 0:00:02]} 39. Rg7+ {[%clk 0:00:08]} 1-0


[Site "https://www.chess.com"]

[Event "Titled Tuesday Blitz August 09 Early 2022"]
[White "Ekdyshman, Mikhail"]
[Black "Veiga, Jose Francisco R P Neves"]
[WhiteFideId "4149416"]
[BlackFideId "1930087"]
[WhiteElo "2146"]
[BlackElo "2273"]
[Result "1-0"]
[Round "08"]
[TimeControl "180+1"]
[Date "2022.08.09"]
[WhiteClock "0:00:10"]
[BlackClock "0:01:10"]

1. e4 {[%clk 0:02:59]}  Nc6 {[%clk 0:03:00]} 2. Nf3 {[%clk 0:02:59]}  e5 {[%clk 0:03:00]} 3. Nc3 {[%clk 0:02:59]}  Nf6 {[%clk 0:03:01]} 4. d4 {[%clk 0:02:59]}  exd4 {[%clk 0:03:00]} 5. Nxd4 {[%clk 0:02:59]}  Bb4 {[%clk 0:03:01]} 6. Nxc6 {[%clk 0:02:59]}  bxc6 {[%clk 0:03:02]} 7. Bd3 {[%clk 0:02:59]}  O-O {[%clk 0:03:02]} 8. O-O {[%clk 0:02:59]}  d5 {[%clk 0:03:03]} 9. exd5 {[%clk 0:02:58]}  Bg4 {[%clk 0:03:03]} 10. Ne2 {[%clk 0:02:54]}  cxd5 {[%clk 0:03:00]} 11. h3 {[%clk 0:02:54]}  Bh5 {[%clk 0:03:00]} 12. c3 {[%clk 0:02:53]}  Be7 {[%clk 0:02:59]} 13. Qc2 {[%clk 0:02:50]}  Bg6 {[%clk 0:02:59]} 14. Bxg6 {[%clk 0:02:47]}  hxg6 {[%clk 0:03:00]} 15. Rd1 {[%clk 0:02:42]}  c6 {[%clk 0:03:00]} 16. Nd4 {[%clk 0:02:40]}  Qb6 {[%clk 0:02:57]} 17. Be3 {[%clk 0:02:39]}  Qb7 {[%clk 0:02:48]} 18. b4 {[%clk 0:02:37]}  Rfe8 {[%clk 0:02:48]} 19. Nb3 {[%clk 0:02:35]}  Bd6 {[%clk 0:02:44]} 20. Bd4 {[%clk 0:02:23]}  Ne4 {[%clk 0:02:39]} 21. f3 {[%clk 0:02:19]}  Ng3 {[%clk 0:02:38]} 22. Rd2 {[%clk 0:02:06]}  Qb5 {[%clk 0:02:34]} 23. Bf2 {[%clk 0:01:42]}  Qc4 {[%clk 0:02:22]} 24. Nd4 {[%clk 0:01:39]}  Re7 {[%clk 0:02:12]} 25. Qd3 {[%clk 0:01:25]}  Ne2+ {[%clk 0:02:01]} 26. Kf1 {[%clk 0:01:09]}  Qxd3 {[%clk 0:01:50]} 27. Rxd3 {[%clk 0:01:07]}  Nxd4 {[%clk 0:01:51]} 28. Rxd4 {[%clk 0:00:58]}  a5 {[%clk 0:01:50]} 29. a4 {[%clk 0:00:46]}  Rb7 {[%clk 0:01:47]} 30. b5 {[%clk 0:00:36]}  Bc5 {[%clk 0:01:23]} 31. bxc6 {[%clk 0:00:33]}  Rc7 {[%clk 0:01:23]} 32. Rxd5 {[%clk 0:00:31]}  Bxf2 {[%clk 0:01:23]} 33. Kxf2 {[%clk 0:00:29]}  Rxc6 {[%clk 0:01:24]} 34. Rc1 {[%clk 0:00:25]}  Rac8 {[%clk 0:01:24]} 35. Rxa5 {[%clk 0:00:22]}  Rxc3 {[%clk 0:01:24]} 36. Rxc3 {[%clk 0:00:19]}  Rxc3 {[%clk 0:01:25]} 37. Ra8+ {[%clk 0:00:19]}  Kh7 {[%clk 0:01:25]} 38. h4 {[%clk 0:00:14]}  Ra3 {[%clk 0:01:23]} 39. Kg3 {[%clk 0:00:11]}  f6 {[%clk 0:01:18]} 40. Kf4 {[%clk 0:00:06]}  Ra2 {[%clk 0:01:18]} 41. g4 {[%clk 0:00:06]}  Rh2 {[%clk 0:01:18]} 42. Kg3 {[%clk 0:00:05]}  Ra2 {[%clk 0:01:18]} 43. a5 {[%clk 0:00:04]}  Ra4 {[%clk 0:01:18]} 44. a6 {[%clk 0:00:05]}  g5 {[%clk 0:01:13]} 45. h5 {[%clk 0:00:04]}  g6 {[%clk 0:01:11]} 46. a7 {[%clk 0:00:03]}  gxh5 {[%clk 0:01:10]} 47. gxh5 {[%clk 0:00:04]}  Kg7 {[%clk 0:01:05]} 48. h6+ {[%clk 0:00:04]}  Kh7 {[%clk 0:01:06]} 49. Kf2 {[%clk 0:00:04]}  Ra3 {[%clk 0:01:06]} 50. Ke2 {[%clk 0:00:04]}  Rb3 {[%clk 0:01:06]} 51. Rb8 {[%clk 0:00:04]}  Ra3 {[%clk 0:01:05]} 52. a8=Q {[%clk 0:00:04]}  Rxa8 {[%clk 0:01:06]} 53. Rxa8 {[%clk 0:00:05]}  Kxh6 {[%clk 0:01:07]} 54. Ra6 {[%clk 0:00:06]}  Kh5 {[%clk 0:01:08]} 55. Ke3 {[%clk 0:00:07]}  Kh4 {[%clk 0:01:08]} 56. Kf2 {[%clk 0:00:08]}  f5 {[%clk 0:01:08]} 57. Ra4+ {[%clk 0:00:08]}  f4 {[%clk 0:01:08]} 58. Rb4 {[%clk 0:00:09]}  Kh3 {[%clk 0:01:09]} 59. Rb5 {[%clk 0:00:09]}  g4 {[%clk 0:01:09]} 60. fxg4 {[%clk 0:00:09]}  Kxg4 {[%clk 0:01:10]} 61. Rb4 {[%clk 0:00:09]}  Kg5 {[%clk 0:01:10]} 62. Kf3 {[%clk 0:00:10]} 1-0


[Site "https://www.chess.com"]

[Event "Titled Tuesday Blitz August 09 Early 2022"]
[White "Eynullayev, Atilla"]
[Black "Rios Escobar, Adan"]
[WhiteFideId "13413570"]
[BlackFideId "3403645"]
[WhiteElo "1936"]
[BlackElo "2406"]
[Result "0-1"]
[Round "08"]
[TimeControl "180+1"]
[Date "2022.08.09"]
[WhiteClock "0:02:52"]
[BlackClock "0:01:19"]

1. d4 {[%clk 0:03:00]}  Nf6 {[%clk 0:02:59]} 2. c4 {[%clk 0:02:59]}  g6 {[%clk 0:03:00]} 3. Nc3 {[%clk 0:02:58]}  Bg7 {[%clk 0:03:01]} 4. e4 {[%clk 0:02:59]}  d6 {[%clk 0:03:01]} 5. Be2 {[%clk 0:02:59]}  O-O {[%clk 0:03:02]} 6. Be3 {[%clk 0:03:00]}  Nc6 {[%clk 0:03:02]} 7. d5 {[%clk 0:02:59]}  Ne5 {[%clk 0:03:02]} 8. f4 {[%clk 0:03:00]}  Neg4 {[%clk 0:02:57]} 9. Bd2 {[%clk 0:02:59]}  e5 {[%clk 0:02:36]} 10. h3 {[%clk 0:02:59]}  Nh6 {[%clk 0:02:35]} 11. Nf3 {[%clk 0:03:00]}  exf4 {[%clk 0:02:22]} 12. Bxf4 {[%clk 0:02:59]}  Nh5 {[%clk 0:01:51]} 13. Bg5 {[%clk 0:02:56]}  f6 {[%clk 0:01:45]} 14. Be3 {[%clk 0:02:57]}  Ng3 {[%clk 0:01:40]} 15. Rg1 {[%clk 0:02:57]}  Re8 {[%clk 0:01:36]} 16. Qd2 {[%clk 0:02:55]}  Nf7 {[%clk 0:01:36]} 17. O-O-O {[%clk 0:02:55]}  Nxe4 {[%clk 0:01:27]} 18. Nxe4 {[%clk 0:02:54]}  Rxe4 {[%clk 0:01:28]} 19. Bd3 {[%clk 0:02:55]}  Rxe3 {[%clk 0:01:22]} 20. Kb1 {[%clk 0:02:55]}  Rxd3 {[%clk 0:01:21]} 21. Qxd3 {[%clk 0:02:52]}  Bf5 {[%clk 0:01:19]} 0-1


[Site "https://www.chess.com"]

[Event "Titled Tuesday Blitz August 09 Early 2022"]
[White "Ezov"]
[Black "Butti, Enrique"]
[BlackFideId "3700470"]
[WhiteElo "2283"]
[BlackElo "2080"]
[Result "1-0"]
[Round "08"]
[TimeControl "180+1"]
[Date "2022.08.09"]
[WhiteClock "0:02:35"]
[BlackClock "0:02:44"]

1. d4 {[%clk 0:03:00]}  c5 {[%clk 0:02:59]} 2. Nf3 {[%clk 0:02:59]}  cxd4 {[%clk 0:02:58]} 3. Nxd4 {[%clk 0:03:00]}  d5 {[%clk 0:02:57]} 4. g3 {[%clk 0:03:00]}  e5 {[%clk 0:02:56]} 5. Nb3 {[%clk 0:03:00]}  Nc6 {[%clk 0:02:56]} 6. Bg2 {[%clk 0:03:00]}  Be6 {[%clk 0:02:55]} 7. O-O {[%clk 0:02:58]}  Qd7 {[%clk 0:02:55]} 8. Nc3 {[%clk 0:02:56]}  Nge7 {[%clk 0:02:52]} 9. Nc5 {[%clk 0:02:52]}  Qd6 {[%clk 0:02:49]} 10. Nxe6 {[%clk 0:02:51]}  fxe6 {[%clk 0:02:48]} 11. Nb5 {[%clk 0:02:49]}  Qd7 {[%clk 0:02:47]} 12. c4 {[%clk 0:02:41]}  dxc4 {[%clk 0:02:45]} 13. Qxd7+ {[%clk 0:02:35]}  Kxd7 {[%clk 0:02:44]} 14. Na3 {[%clk 0:02:35]} 1-0


[Site "https://www.chess.com"]

[Event "Titled Tuesday Blitz August 09 Early 2022"]
[White "Fernandez Siles, Luis"]
[Black "Quirke, Jeffrey"]
[WhiteFideId "2209420"]
[BlackFideId "2013029"]
[WhiteElo "2211"]
[BlackElo "2227"]
[Result "1-0"]
[Round "08"]
[TimeControl "180+1"]
[Date "2022.08.09"]
[WhiteClock "0:01:11"]
[BlackClock "0:00:01"]

1. e4 {[%clk 0:03:00]}  e5 {[%clk 0:02:59]} 2. Nf3 {[%clk 0:03:01]}  Nc6 {[%clk 0:02:59]} 3. Bc4 {[%clk 0:03:01]}  Nf6 {[%clk 0:02:58]} 4. d4 {[%clk 0:02:59]}  exd4 {[%clk 0:02:56]} 5. O-O {[%clk 0:02:59]}  Nxe4 {[%clk 0:02:55]} 6. Nc3 {[%clk 0:02:59]}  dxc3 {[%clk 0:02:42]} 7. Bxf7+ {[%clk 0:02:58]}  Kxf7 {[%clk 0:02:40]} 8. Qd5+ {[%clk 0:02:57]}  Ke8 {[%clk 0:02:24]} 9. Re1 {[%clk 0:02:56]}  Be7 {[%clk 0:02:06]} 10. Rxe4 {[%clk 0:02:56]}  Nb4 {[%clk 0:01:41]} 11. Qh5+ {[%clk 0:01:43]}  g6 {[%clk 0:01:38]} 12. Qe5 {[%clk 0:01:40]}  d5 {[%clk 0:01:09]} 13. Qxh8+ {[%clk 0:01:37]}  Kd7 {[%clk 0:01:09]} 14. Rxe7+ {[%clk 0:01:19]}  Qxe7 {[%clk 0:01:00]} 15. Bg5 {[%clk 0:01:19]}  cxb2 {[%clk 0:00:06]} 16. Qxb2 {[%clk 0:01:15]}  Qe6 {[%clk 0:00:01]} 17. Qxb4 {[%clk 0:01:11]} 1-0


[Site "https://www.chess.com"]